bitfinex/quotes_BTCUSD_20251117
["timestamp","ask_amount","ask_price","bid_price","bid_amount"]
[1763338943081,0.53998991,94251.0,94250.0,4e-08]
[1763338943661,0.51177932,94251.0,94250.0,4e-08]
[1763338944168,0.50977932,94251.0,94250.0,4e-08]
[1763338944677,0.51277932,94251.0,94250.0,4e-08]
[1763338944923,0.55319806,94251.0,94250.0,4e-08]
[1763338945192,0.55619806,94251.0,94250.0,4e-08]
[1763338945698,0.81203806,94251.0,94250.0,4e-08]
[1763338945930,0.84665059,94251.0,94250.0,4e-08]
[1763338946160,0.79585508,94251.0,94250.0,4e-08]
[1763338946400,0.71057508,94251.0,94250.0,4e-08]
[1763338946616,0.58768255,94251.0,94250.0,4e-08]
[1763338947195,0.58468255,94251.0,94250.0,4e-08]
[1763338947544,0.58768255,94251.0,94250.0,4e-08]
[1763338947744,0.58468255,94251.0,94250.0,4e-08]
[1763338948181,0.58768255,94251.0,94250.0,4e-08]
[1763338948794,0.50240255,94251.0,94250.0,4e-08]
[1763338949587,0.45898381,94251.0,94250.0,4e-08]
[1763338949817,0.06901605,94251.0,94250.0,4e-08]
[1763338950170,0.06901605,94251.0,94215.0,0.04634]
[1763338950171,0.06901605,94251.0,94240.0,0.09874]
[1763338950371,0.06901605,94251.0,94240.0,0.04634]
[1763338950372,0.01964094,94250.0,94240.0,0.04634]
[1763338950598,0.01964094,94249.0,94241.0,0.09874]
[1763338950924,0.01964094,94248.0,94241.0,0.09874]
[1763338951139,0.01964094,94247.0,94241.0,0.09874]
[1763338951279,0.01964094,94246.0,94241.0,0.09874]
[1763338951480,0.01964094,94245.0,94241.0,0.09874]
[1763338951725,0.01964094,94244.0,94241.0,0.09874]
[1763338952066,0.00044613,94246.0,94241.0,0.09874]
[1763338952067,0.01964094,94243.0,94241.0,0.09874]
[1763338952282,0.01964094,94242.0,94241.0,0.09874]
[1763338952475,0.01964094,94242.0,94240.0,0.04634]
[1763338952620,0.01964094,94241.0,94240.0,0.04634]
[1763338952816,0.01964094,94245.0,94240.0,0.04634]
[1763338953048,0.01669861,94241.0,94240.0,0.04634]
[1763338953448,0.01669861,94241.0,94240.0,0.20965]
[1763338953630,0.03633955,94241.0,94240.0,0.20965]
[1763338953826,0.03633955,94241.0,94231.0,0.0343]
[1763338954034,0.01964094,94240.0,94231.0,0.0343]
[1763338954638,0.02601855,94239.0,94231.0,0.0343]
[1763338954975,0.01964094,94238.0,94231.0,0.13304]
[1763338955180,0.01964094,94238.0,94237.0,0.06457]
[1763338955537,0.27548094,94238.0,94237.0,0.16331]
[1763338956150,0.10492094,94238.0,94237.0,0.16331]
[1763338956531,0.01964094,94238.0,94237.0,0.16367331]
[1763338956797,0.01964094,94239.0,94237.0,0.16367331]
[1763338957018,0.01964094,94238.0,94237.0,0.01979733]
[1763338957230,0.02859881,94286.0,94240.0,0.07456999]
[1763338957400,0.03197062,94265.0,94263.0,0.04634]
[1763338957800,0.03197062,94265.0,94264.0,0.16331]
[1763338958119,0.03197062,94265.0,94264.0,0.06457]
[1763338958260,0.03197062,94265.0,94254.0,0.09595906]
[1763338958461,0.03197062,94265.0,94255.0,0.09874]
[1763338959278,0.03197062,94265.0,94240.0,0.10887385]
[1763338959503,0.03197062,94265.0,94241.0,0.09595906]
[1763338959504,0.41274855,94264.0,94241.0,0.09595906]
[1763338959702,0.323,94264.0,94241.0,0.19469906]
[1763338959959,0.323,94264.0,94242.0,0.09799772]
[1763338960110,0.323,94264.0,94242.0,0.12204078]
[1763338960309,0.00025855,94263.0,94242.0,0.12204078]
[1763338960509,0.323,94264.0,94242.0,0.12204078]
[1763338961142,0.324,94264.0,94242.0,0.12204078]
[1763338961558,0.01669432,94259.0,94242.0,0.12204078]
[1763338961989,0.01669432,94259.0,94242.0,0.09799772]
[1763338962451,0.03697,94258.0,94240.0,0.00013386]
[1763338962707,0.12619855,94258.0,94240.0,0.00013386]
[1763338963364,0.03697,94258.0,94241.0,0.04634]
[1763338963579,0.00025855,94257.0,94241.0,0.04634]
[1763338963988,0.08897,94256.0,94240.0,0.00013386]
[1763338964455,0.00025855,94255.0,94240.0,0.00013386]
[1763338964788,0.08897,94254.0,94240.0,0.00013386]
[1763338965253,0.00025855,94253.0,94240.0,0.00013386]
[1763338965512,0.17056,94241.0,94240.0,0.00013386]
[1763338965676,0.49356,94241.0,94240.0,0.00013386]
[1763338965891,0.58278855,94241.0,94240.0,0.00013386]
[1763338966564,0.49381855,94241.0,94240.0,0.00013386]
[1763338966763,0.41053855,94241.0,94240.0,0.00013386]
[1763338967184,0.35724035,94241.0,94240.0,0.00013386]
[1763338967373,0.35524035,94241.0,94240.0,0.00013386]
[1763338967775,0.35624035,94241.0,94240.0,0.00013386]
[1763338967979,0.35624035,94241.0,94240.0,0.16335386]
[1763338967980,0.3559818,94241.0,94240.0,0.16335386]
[1763338968183,0.0329818,94241.0,94240.0,0.16335386]
[1763338968403,0.0329818,94241.0,94240.0,0.16363338]
[1763338968784,0.001,94241.0,94240.0,0.16363338]
[1763338968987,0.03197672,94244.0,94240.0,0.00041338]
[1763338969188,0.01966484,94243.0,94241.0,0.04961]
[1763338969392,0.01966484,94243.0,94242.0,0.09745]
[1763338969593,0.01966484,94243.0,94242.0,0.06477]
[1763338970683,0.02066484,94243.0,94242.0,0.06477]
[1763338971025,0.01966484,94243.0,94242.0,0.06477]
[1763338971232,0.01966484,94243.0,94240.0,0.00013386]
[1763338971599,0.00025855,94242.0,94240.0,0.00013386]
[1763338971800,0.02054484,94241.0,94240.0,0.00013386]
[1763338972216,0.10839339,94241.0,94240.0,0.00013386]
[1763338972777,0.43139339,94241.0,94240.0,0.00013386]
[1763338972980,0.43239339,94241.0,94240.0,0.00013386]
[1763338973128,0.43139339,94241.0,94240.0,0.00013386]
[1763338973534,0.43239339,94241.0,94240.0,0.00013386]
[1763338975261,0.44909315,94241.0,94240.0,0.00013386]
[1763338975428,0.70493315,94241.0,94240.0,0.00013386]
[1763338975633,0.61965315,94241.0,94240.0,0.00041338]
[1763338976055,0.53206315,94241.0,94240.0,0.00041338]
[1763338976252,0.53437315,94241.0,94240.0,0.00041338]
[1763338976453,0.09426,94240.0,94206.0,0.09170662]
[1763338976695,0.04698484,94239.0,94207.0,0.09595906]
[1763338976876,0.01967113,94238.0,94231.0,0.00025145]
[1763338977215,0.01967113,94237.0,94231.0,0.00025145]
[1763338977646,0.01992968,94236.0,94231.0,0.00025145]
[1763338977778,0.01967113,94235.0,94231.0,0.00025145]
[1763338978181,0.01992968,94234.0,94231.0,0.00025145]
[1763338978385,0.01967113,94233.0,94231.0,0.00025145]
[1763338978769,0.01992968,94232.0,94231.0,0.00025145]
[1763338980367,0.02092968,94232.0,94231.0,0.00025145]
[1763338980902,0.43751968,94232.0,94231.0,0.00025145]
[1763338981188,0.45421873,94232.0,94231.0,0.00025145]
[1763338981334,0.02889,94201.0,94200.0,9.99471958]
[1763338981659,0.04881968,94201.0,94200.0,9.99471958]
[1763338981814,0.04881968,94201.0,94200.0,9.99558579]
[1763338982432,0.04995329,94201.0,94200.0,9.99558579]
[1763338982630,0.04895329,94201.0,94200.0,9.99558579]
[1763338982831,0.0476287,94201.0,94200.0,9.99558579]
[1763338983073,0.0486287,94201.0,94200.0,9.99558579]
[1763338984082,0.04888725,94201.0,94200.0,9.99558579]
[1763338984298,0.0486287,94201.0,94200.0,9.99558579]
[1763338984509,0.0476287,94201.0,94200.0,9.99558579]
[1763338984685,0.04788725,94201.0,94200.0,9.99558579]
[1763338985316,0.04888725,94201.0,94200.0,9.99558579]
[1763338985525,0.62672725,94201.0,94200.0,9.99558579]
[1763338985759,0.61497725,94201.0,94200.0,9.99558579]
[1763338985981,0.54244725,94201.0,94200.0,9.99558579]
[1763338986378,0.3716287,94201.0,94200.0,10.06035579]
[1763338986673,0.00113361,94201.0,94200.0,10.15880579]
[1763338987094,0.00113361,94201.0,94200.0,10.06035579]
[1763338987329,0.00113361,94201.0,94200.0,10.15880579]
[1763338987523,0.00013361,94201.0,94200.0,10.15880579]
[1763338988487,0.00113361,94201.0,94200.0,10.15880579]
[1763338988828,0.00013361,94201.0,94200.0,10.15880579]
[1763338989031,0.00013361,94201.0,94200.0,9.99558579]
[1763338989233,0.00039216,94201.0,94200.0,9.99558579]
[1763338989438,0.05422216,94201.0,94200.0,9.99558579]
[1763338989579,0.073854,94201.0,94200.0,9.99558579]
[1763338991343,0.09055852,94201.0,94200.0,9.99558579]
[1763338991541,0.09155852,94201.0,94200.0,9.99558579]
[1763338991748,0.074854,94201.0,94200.0,9.99558579]
[1763338992148,0.073854,94201.0,94200.0,9.99558579]
[1763338992541,0.074854,94201.0,94200.0,9.99558579]
[1763338993484,0.021564,94201.0,94200.0,9.99558579]
[1763338993660,0.074854,94201.0,94200.0,9.99558579]
[1763338994252,0.073854,94201.0,94200.0,9.99558579]
[1763338994653,0.45797817,94201.0,94200.0,9.99558579]
[1763338994882,0.4853168,94201.0,94200.0,9.99558579]
[1763338995182,0.45697817,94201.0,94200.0,9.99558579]
[1763338995382,0.54329817,94201.0,94200.0,9.99558579]
[1763338995588,0.67051943,94201.0,94200.0,9.99558579]
[1763338996482,0.58519943,94201.0,94200.0,9.99558579]
[1763338996685,0.61720388,94201.0,94200.0,9.99558579]
[1763338998487,0.53188388,94201.0,94200.0,9.99558579]
[1763338998718,0.44656388,94201.0,94200.0,9.99558579]
[1763338999178,0.48998262,94201.0,94200.0,9.99558579]
[1763338999629,0.77492301,94201.0,94200.0,9.99558579]
[1763339000044,0.73628262,94201.0,94200.0,9.99558579]
[1763339000238,0.73828262,94201.0,94200.0,9.99558579]
[1763339000446,0.69486388,94201.0,94200.0,9.99558579]
[1763339000999,0.47583609,94201.0,94200.0,9.99558579]
[1763339001411,0.47585133,94201.0,94200.0,9.99558579]
[1763339001611,0.07127388,94201.0,94200.0,9.99558579]
[1763339001810,0.07047533,94201.0,94200.0,9.99558579]
[1763339002010,0.07154533,94201.0,94200.0,9.99558579]
[1763339002236,0.12431533,94201.0,94200.0,9.99558579]
[1763339002437,0.12457388,94201.0,94200.0,9.89722074]
[1763339002655,0.07180388,94201.0,94200.0,9.89722074]
[1763339002842,0.07073388,94201.0,94200.0,9.89722074]
[1763339003042,0.06847533,94201.0,94200.0,9.89722074]
[1763339003203,0.03847088,94201.0,94200.0,9.89722074]
[1763339003417,0.03847088,94201.0,94200.0,9.87802757]
[1763339003621,0.03847088,94201.0,94200.0,9.94376757]
[1763339003622,0.01976545,94201.0,94200.0,9.94376757]
[1763339003895,0.02076545,94201.0,94200.0,10.03667757]
[1763339004324,0.01976545,94201.0,94200.0,10.03667757]
[1763339004538,0.02076545,94201.0,94200.0,10.03667757]
[1763339004755,0.01976545,94201.0,94200.0,10.03667757]
[1763339005628,0.27572545,94201.0,94200.0,10.03667757]
[1763339005830,0.59872545,94201.0,94200.0,10.14034695]
[1763339006039,0.34276545,94201.0,94200.0,10.14034695]
[1763339006289,0.01976545,94201.0,94200.0,10.14034695]
[1763339006482,0.00013361,94201.0,94200.0,10.14034695]
[1763339006654,0.00013361,94201.0,94200.0,10.03667757]
[1763339006832,0.01683337,94201.0,94200.0,10.03667757]
[1763339008191,0.03649817,94201.0,94200.0,10.03667757]
[1763339008537,0.03649817,94201.0,94200.0,10.0199767]
[1763339008737,0.03649817,94201.0,94200.0,9.9270667]
[1763339008949,0.03649817,94201.0,94200.0,9.9542367]
[1763339009151,0.03649817,94201.0,94200.0,10.0199767]
[1763339009569,0.03649817,94201.0,94200.0,9.9270667]
[1763339009734,0.03649817,94201.0,94200.0,9.8613267]
[1763339009934,0.03649817,94201.0,94200.0,10.0199767]
[1763339010194,0.03675672,94201.0,94200.0,10.0199767]
[1763339010366,0.03675672,94201.0,94200.0,9.9270667]
[1763339010939,0.03675672,94201.0,94200.0,10.0199767]
[1763339011348,0.03739195,94201.0,94200.0,10.0199767]
[1763339011548,0.03675672,94201.0,94200.0,10.10694499]
[1763339011778,0.03649817,94201.0,94200.0,10.00327561]
[1763339012958,0.03649817,94201.0,94200.0,9.84462561]
[1763339013089,0.03675672,94201.0,94200.0,9.84462561]
[1763339013519,0.03675672,94201.0,94200.0,10.00327561]
[1763339014281,0.03649817,94201.0,94200.0,10.00327561]
[1763339014521,0.01683337,94201.0,94200.0,10.10694499]
[1763339014720,0.01683337,94201.0,94200.0,10.09024432]
[1763339014984,0.01683337,94201.0,94200.0,9.98657494]
[1763339015381,0.59567337,94201.0,94200.0,9.98657494]
[1763339016052,0.33983337,94201.0,94200.0,9.98657494]
[1763339016275,0.35948233,94201.0,94200.0,9.98657494]
[1763339016468,0.33983337,94201.0,94200.0,9.98657494]
[1763339016841,0.33983337,94201.0,94200.0,9.89366494]
[1763339017042,0.35973805,94201.0,94200.0,9.89366494]
[1763339017243,0.34303829,94201.0,94200.0,9.82792494]
[1763339018645,0.34303829,94201.0,94200.0,9.98657494]
[1763339019315,0.34303829,94201.0,94200.0,9.89366494]
[1763339019717,0.34303829,94201.0,94200.0,9.82792494]
[1763339019927,0.34277974,94201.0,94200.0,10.02999368]
[1763339020073,0.32313361,94201.0,94200.0,10.02999368]
[1763339020477,0.3398329,94201.0,94200.0,10.02999368]
[1763339020995,0.3398329,94201.0,94200.0,10.01329444]
[1763339021264,0.00013361,94201.0,94200.0,10.01329444]
[1763339022053,0.01683197,94201.0,94200.0,10.01329444]
[1763339024499,0.01683197,94201.0,94200.0,9.99659576]
[1763339024899,0.01683197,94201.0,94200.0,9.90368576]
[1763339025106,0.01683197,94201.0,94200.0,9.99659576]
[1763339025510,0.27267197,94201.0,94200.0,9.99659576]
[1763339026538,0.10211197,94201.0,94200.0,9.95317702]
[1763339027425,0.10211197,94201.0,94200.0,9.93647797]
[1763339027629,0.00025855,94224.0,94200.0,9.93647797]
[1763339027630,0.00025855,94224.0,94201.0,0.04341874]
[1763339027835,0.00025855,94224.0,94223.0,0.16420307]
[1763339028047,0.01991148,94224.0,94223.0,0.16420307]
[1763339028446,0.05189491,94224.0,94223.0,0.16420307]
[1763339028655,0.05289491,94224.0,94223.0,0.16420307]
[1763339028899,0.05189491,94224.0,94223.0,0.16420307]
[1763339029283,0.05289491,94224.0,94223.0,0.01314307]
[1763339029507,0.05353173,94224.0,94217.0,0.04857]
[1763339029653,0.05353173,94224.0,94203.0,0.09006]
[1763339029654,0.01965293,94223.0,94203.0,0.09006]
[1763339029865,0.02028975,94223.0,94210.0,0.04857]
[1763339030081,0.01991148,94222.0,94210.0,0.04857]
[1763339030282,0.01965293,94221.0,94210.0,0.04857]
[1763339030479,0.02028975,94221.0,94210.0,0.04857]
[1763339030719,0.01991148,94220.0,94210.0,0.04857]
[1763339030929,0.01965293,94219.0,94210.0,0.04857]
[1763339031183,0.02028975,94219.0,94210.0,0.04857]
[1763339031409,0.01991148,94218.0,94211.0,0.07336051]
[1763339031637,0.01965293,94217.0,94211.0,0.07336051]
[1763339032084,0.00089537,94216.0,94211.0,0.07336051]
[1763339032308,0.01965293,94215.0,94211.0,0.07336051]
[1763339032782,0.01991148,94216.0,94214.0,0.061]
[1763339032986,0.01991148,94216.0,94215.0,0.03664]
[1763339033223,0.03936453,94216.0,94215.0,0.03664]
[1763339033660,0.03936453,94216.0,94215.0,0.1267]
[1763339035367,0.03936453,94216.0,94215.0,0.1100017]
[1763339035572,0.29520453,94216.0,94215.0,0.1100017]
[1763339036608,0.5985516,94216.0,94215.0,0.1100017]
[1763339037271,0.59856605,94216.0,94215.0,0.1100017]
[1763339038397,0.59856605,94216.0,94215.0,0.09375051]
[1763339038988,0.42800605,94216.0,94215.0,0.09375051]
[1763339039407,0.34272605,94216.0,94215.0,0.09375051]
[1763339039901,0.00025855,94230.0,94220.0,0.00999999]
[1763339040107,0.00025855,94239.0,94229.0,0.03279]
[1763339040307,0.00025855,94239.0,94230.0,0.00999999]
[1763339040541,0.00025855,94254.0,94240.0,0.00999999]
[1763339040741,0.00025855,94254.0,94253.0,0.0231963]
[1763339041343,0.03223101,94254.0,94253.0,0.0231963]
[1763339041557,0.03233533,94254.0,94247.0,0.03964211]
[1763339042159,0.03233533,94254.0,94249.0,0.09595906]
[1763339042372,0.00036287,94254.0,94250.0,0.01356012]
[1763339042643,0.00010432,94254.0,94250.0,0.01356012]
[1763339042789,0.02829311,94293.0,94270.0,0.00999999]
[1763339043013,0.02829311,94286.0,94270.0,0.00999999]
[1763339043407,0.00025855,94285.0,94270.0,0.00999999]
[1763339043629,0.00025855,94285.0,94271.0,0.03603]
[1763339043976,0.03196087,94291.0,94284.0,0.05816]
[1763339044193,0.00025855,94290.0,94284.0,0.0357]
[1763339044396,0.00010429,94293.0,94289.0,0.03603]
[1763339044603,0.00010429,94293.0,94292.0,0.03603]
[1763339045021,0.00046789,94300.0,94293.0,0.03622]
[1763339045195,0.00025855,94304.0,94299.0,0.11676906]
[1763339045394,0.08528,94303.0,94299.0,0.11676906]
[1763339045629,0.00063684,94315.0,94299.0,0.11123897]
[1763339045630,0.49356,94300.0,94299.0,0.11123897]
[1763339045835,0.08528,94300.0,94299.0,0.07927365]
[1763339046024,0.08553855,94300.0,94299.0,0.11530365]
[1763339046226,0.08553855,94300.0,94299.0,0.13628365]
[1763339046368,0.00025855,94313.0,94300.0,0.05341873]
[1763339046570,0.00025855,94313.0,94302.0,0.04341874]
[1763339046771,0.00025855,94313.0,94312.0,0.03603]
[1763339047057,0.12082311,94359.0,94312.0,0.03603]
[1763339047058,0.02798486,94350.0,94313.0,0.04341874]
[1763339047258,0.5002,94370.0,94359.0,0.01078]
[1763339047259,0.0002,94370.0,94359.0,0.01078]
[1763339047427,0.00064711,94370.0,94369.0,0.01078]
[1763339048068,0.07810518,94370.0,94359.0,0.01078]
[1763339048260,0.07810518,94370.0,94312.0,0.001]
[1763339048261,0.06138,94360.0,94325.0,0.01078]
[1763339048442,0.04657,94341.0,94331.0,0.09595906]
[1763339048643,0.04657,94341.0,94320.0,0.00999999]
[1763339048869,0.04657,94348.0,94331.0,0.09595906]
[1763339049056,0.04657,94358.0,94331.0,0.09595906]
[1763339049356,0.04657,94358.0,94332.0,0.04341874]
[1763339049651,0.00044683,94358.0,94334.0,0.04341874]
[1763339049793,0.00044683,94358.0,94334.0,0.05419874]
[1763339049994,0.00044683,94358.0,94332.0,0.04341874]
[1763339050257,0.00044683,94358.0,94346.0,0.09595906]
[1763339050865,0.00044683,94358.0,94347.0,0.05419874]
[1763339051858,0.00044683,94358.0,94347.0,0.01078]
[1763339052290,0.00133892,94348.0,94346.0,0.09595906]
[1763339052436,0.00044683,94358.0,94357.0,0.01078]
[1763339052872,0.00044683,94358.0,94357.0,0.02156]
[1763339053677,0.00044683,94358.0,94357.0,0.02256]
[1763339053885,0.00044683,94358.0,94357.0,0.001]
[1763339054282,0.15435683,94358.0,94357.0,0.001]
[1763339054482,0.20568409,94358.0,94357.0,0.001]
[1763339055133,0.20568409,94358.0,94316.0,0.10006233]
[1763339055332,0.11896582,94357.0,94332.0,0.00959591]
[1763339055539,0.11896582,94357.0,94316.0,0.10006233]
[1763339055540,0.1704,94333.0,94316.0,0.10006233]
[1763339055714,0.0852,94333.0,94316.0,0.08928233]
[1763339055910,0.09958,94342.0,94316.0,0.07260584]
[1763339056322,0.00999999,94350.0,94331.0,0.09595906]
[1763339056520,0.03238827,94358.0,94331.0,0.09595906]
[1763339056699,0.01937836,94357.0,94331.0,0.09595906]
[1763339056904,0.03238827,94358.0,94346.0,0.09595906]
[1763339057178,0.03338827,94358.0,94346.0,0.09595906]
[1763339057362,0.03338827,94358.0,94357.0,0.01078]
[1763339057363,0.00044683,94358.0,94357.0,0.01078]
[1763339057788,0.00144683,94358.0,94357.0,0.02156]
[1763339057962,0.00044683,94358.0,94357.0,0.02156]
[1763339058485,0.00206448,94358.0,94357.0,0.06497874]
[1763339058645,0.00206448,94358.0,94357.0,0.07247661]
[1763339059282,0.0002,94370.0,94357.0,0.07247661]
[1763339059283,0.0002,94370.0,94358.0,0.04341874]
[1763339059464,0.0002,94370.0,94369.0,0.1501578]
[1763339059465,0.00033399,94370.0,94369.0,0.1501578]
[1763339059663,0.0002,94380.0,94369.0,0.1501578]
[1763339059664,0.01605888,94377.0,94369.0,0.1501578]
[1763339059865,0.03192251,94395.0,94380.0,0.04341874]
[1763339060109,0.0002,94400.0,94394.0,0.02156]
[1763339060312,0.00033386,94400.0,94399.0,0.01078]
[1763339060469,0.00033386,94400.0,94399.0,0.02156]
[1763339060669,0.0164306,94400.0,94399.0,0.02156]
[1763339060896,0.00033386,94400.0,94399.0,0.02156]
[1763339061100,0.01670935,94400.0,94399.0,0.02156]
[1763339061299,0.0528258,94432.0,94400.0,0.04341874]
[1763339061503,0.00013384,94432.0,94429.0,0.09595906]
[1763339061701,0.01663179,94432.0,94429.0,0.09555921]
[1763339061912,0.03191107,94431.0,94429.0,0.09555921]
[1763339062273,0.00013384,94432.0,94429.0,0.09555921]
[1763339062274,0.01624831,94432.0,94430.0,0.01078]
[1763339062487,0.01624831,94432.0,94431.0,0.02141392]
[1763339062696,0.01624831,94432.0,94431.0,0.07561266]
[1763339062869,0.01624831,94432.0,94431.0,0.06483266]
[1763339063114,0.01624831,94432.0,94431.0,0.07561266]
[1763339063315,0.01624831,94432.0,94431.0,0.06483266]
[1763339063515,0.01624831,94432.0,94431.0,0.05405266]
[1763339063675,0.08007831,94432.0,94429.0,0.09555921]
[1763339063855,0.06383,94430.0,94415.0,0.04341874]
[1763339064052,0.09479,94429.0,94414.0,0.09595906]
[1763339064432,0.0486,94415.0,94391.0,0.01078]
[1763339064605,0.0486,94415.0,94400.0,0.09595906]
[1763339064799,0.0486,94415.0,94401.0,0.01067391]
[1763339065008,0.0486,94424.0,94415.0,0.001]
[1763339065163,0.323,94428.0,94420.0,0.09595906]
[1763339065365,0.08516,94421.0,94420.0,0.09595906]
[1763339065573,0.0869153,94421.0,94420.0,0.09595906]
[1763339065777,0.1720753,94421.0,94420.0,0.12831297]
[1763339066644,0.1720753,94421.0,94420.0,0.10674906]
[1763339066856,0.0869153,94421.0,94420.0,0.11753906]
[1763339066996,0.0869153,94421.0,94420.0,0.10674906]
[1763339067390,0.01624831,94432.0,94421.0,0.04341874]
[1763339067600,0.01624831,94432.0,94431.0,0.01079]
[1763339068030,0.01624831,94432.0,94431.0,0.02158]
[1763339068247,0.0003062,94432.0,94431.0,0.02158]
[1763339070224,0.0003062,94432.0,94431.0,0.02258]
[1763339070572,0.0003062,94432.0,94431.0,0.02158]
[1763339070764,0.0003062,94432.0,94431.0,0.02258]
[1763339070901,0.0003062,94432.0,94431.0,0.01179]
[1763339071102,0.0003062,94432.0,94421.0,0.04341874]
[1763339071307,0.01622422,94445.0,94431.0,0.01079]
[1763339071507,0.05249106,94453.0,94444.0,0.09595906]
[1763339071706,0.03190201,94458.0,94444.0,0.09595906]
[1763339071707,0.05270552,94457.0,94444.0,0.09595906]
[1763339071947,0.14749552,94457.0,94421.0,0.01501678]
[1763339072148,0.14749552,94457.0,94444.0,0.09595906]
[1763339072149,0.05217195,94455.0,94444.0,0.09595906]
[1763339072349,0.0194535,94454.0,94444.0,0.09595906]
[1763339072523,0.0194535,94454.0,94431.0,0.001]
[1763339072524,0.07194456,94453.0,94422.0,0.01079]
[1763339072731,0.01690309,94457.0,94420.0,0.09595906]
[1763339072732,0.00999999,94450.0,94435.0,0.09595906]
[1763339072908,0.0486,94436.0,94435.0,0.09595906]
[1763339073113,0.11243,94436.0,94435.0,0.09595906]
[1763339073314,0.0486,94436.0,94435.0,0.09595906]
[1763339073511,0.0486,94436.0,94435.0,0.10555497]
[1763339073751,0.05225705,94446.0,94435.0,0.08889495]
[1763339073930,0.05236336,94444.0,94435.0,0.08889495]
[1763339074199,0.00999999,94450.0,94435.0,0.03731562]
[1763339074387,0.01949542,94449.0,94440.0,0.09595906]
[1763339074636,0.01949542,94448.0,94435.0,0.00297171]
[1763339074837,0.01949542,94447.0,94437.0,0.04398165]
[1763339075114,0.01949542,94446.0,94437.0,0.04398165]
[1763339075317,0.01949542,94445.0,94437.0,0.04398165]
[1763339075481,0.09685468,94414.0,94370.0,0.03811129]
[1763339075685,0.10136854,94413.0,94400.0,0.00999999]
[1763339075885,0.19945708,94412.0,94363.0,0.03811129]
[1763339076075,0.05268497,94427.0,94410.0,0.00999999]
[1763339076298,0.05234568,94433.0,94419.0,1e-08]
[1763339076516,0.0486,94434.0,94419.0,1e-08]
[1763339076517,0.04848831,94429.0,94419.0,1e-08]
[1763339076785,0.0486,94434.0,94428.0,0.07929914]
[1763339076985,0.05285007,94441.0,94429.0,0.00792991]
[1763339077936,0.05265079,94453.0,94429.0,0.00792991]
[1763339078142,0.05265079,94453.0,94452.0,2e-08]
[1763339078143,0.37793079,94453.0,94452.0,2e-08]
[1763339078341,0.49132757,94453.0,94452.0,2e-08]
[1763339078653,0.16832757,94453.0,94431.0,0.04341874]
[1763339078978,0.06906532,94453.0,94452.0,2e-08]
[1763339079183,0.01641453,94453.0,94432.0,2e-08]
[1763339079415,0.01686056,94453.0,94432.0,2e-08]
[1763339079570,0.00044603,94453.0,94452.0,2e-08]
[1763339079742,0.00044603,94453.0,94429.0,0.00743554]
[1763339079943,0.01682523,94453.0,94452.0,2e-08]
[1763339080143,0.00044603,94453.0,94452.0,2e-08]
[1763339080365,0.0525345,94469.0,94452.0,2e-08]
[1763339080573,0.05223073,94467.0,94452.0,2e-08]
[1763339080982,0.05223073,94467.0,94430.0,0.01611247]
[1763339080983,0.09165,94453.0,94430.0,0.01611247]
[1763339081185,0.09165,94453.0,94452.0,0.10587332]
[1763339081544,0.01584378,94466.0,94452.0,0.10587332]
[1763339081545,0.0486,94462.0,94452.0,0.10587332]
[1763339081787,0.05215659,94461.0,94452.0,0.10587332]
[1763339082606,0.0486,94462.0,94452.0,0.10587332]
[1763339083012,0.10587332,94468.0,94452.0,0.09980544]
[1763339083219,0.10587332,94468.0,94467.0,0.14025332]
[1763339083428,0.12276881,94468.0,94467.0,0.18603332]
[1763339083648,0.10587332,94468.0,94467.0,0.23181332]
[1763339083809,0.12296927,94468.0,94467.0,0.25499465]
[1763339084016,0.12402717,94468.0,94467.0,0.25499465]
[1763339084891,0.12402717,94468.0,94467.0,0.20921465]
[1763339085307,0.12402717,94468.0,94452.0,0.08921811]
[1763339085654,0.01956345,94467.0,94452.0,0.08921811]
[1763339085828,0.0447004,94453.0,94452.0,0.08921811]
[1763339086188,0.0006404,94453.0,94452.0,0.08921811]
[1763339086591,0.02023663,94453.0,94452.0,0.08921811]
[1763339086810,0.02023663,94453.0,94452.0,0.09813992]
[1763339087015,0.02023663,94453.0,94452.0,0.08148413]
[1763339087905,0.02023663,94453.0,94452.0,0.07256232]
[1763339088568,0.02023663,94453.0,94452.0,0.11834232]
[1763339088766,0.0006404,94453.0,94452.0,0.16412232]
[1763339090486,0.0006404,94453.0,94452.0,0.1474684]
[1763339093217,0.02031833,94453.0,94452.0,0.0559084]
[1763339093423,0.0006404,94453.0,94452.0,0.04484693]
[1763339093620,0.0006404,94453.0,94452.0,0.13640693]
[1763339095034,0.0006404,94453.0,94452.0,0.17982567]
[1763339095223,0.00013373,94469.0,94468.0,0.10587332]
[1763339095418,0.18658933,94469.0,94468.0,0.19743332]
[1763339095619,0.08517373,94469.0,94468.0,0.21717665]
[1763339095838,0.0002,94470.0,94468.0,0.21717665]
[1763339096067,0.05275427,94508.0,94470.0,0.05341873]
[1763339096397,0.05251086,94506.0,94479.0,0.04578]
[1763339096518,0.05246192,94504.0,94479.0,0.02913164]
[1763339096726,0.01652798,94480.0,94479.0,0.05827164]
[1763339096927,0.05246192,94504.0,94479.0,0.0640988]
[1763339097128,0.05246192,94504.0,94499.0,0.10587332]
[1763339097129,0.00033371,94500.0,94499.0,0.10587332]
[1763339097527,0.02002126,94500.0,94499.0,0.10587332]
[1763339097726,0.09816662,94500.0,94499.0,0.10587332]
[1763339098104,0.09816662,94500.0,94484.0,0.10587332]
[1763339098105,0.19732662,94500.0,94484.0,0.10587332]
[1763339098230,0.05476,94485.0,94469.0,0.03438]
[1763339098426,0.01968755,94484.0,94468.0,0.10587332]
[1763339098626,0.01968755,94483.0,94468.0,0.10587332]
[1763339098826,0.01968755,94482.0,94469.0,0.01058733]
[1763339099027,0.01968755,94481.0,94468.0,0.10587332]
[1763339099276,0.04971,94485.0,94468.0,0.10587332]
[1763339099277,0.01968755,94480.0,94468.0,0.10587332]
[1763339099461,0.01968755,94479.0,94468.0,0.10587332]
[1763339099678,0.01968755,94478.0,94468.0,0.10587332]
[1763339099879,0.01968755,94477.0,94468.0,0.10587332]
[1763339100121,0.06146,94469.0,94438.0,0.03438]
[1763339100331,0.01968755,94468.0,94467.0,0.10587332]
[1763339100704,0.18030755,94468.0,94452.0,0.03925609]
[1763339100931,0.05476,94453.0,94438.0,0.03438]
[1763339101271,0.04971,94453.0,94452.0,0.10587332]
[1763339101471,0.04971,94453.0,94452.0,0.08921921]
[1763339101472,0.0196812,94453.0,94452.0,0.08921921]
[1763339101637,0.1803012,94453.0,94438.0,0.03482603]
[1763339101801,0.0196812,94452.0,94449.0,0.10587332]
[1763339102001,0.0196812,94452.0,94449.0,0.11646065]
[1763339102232,0.0196812,94451.0,94449.0,0.10587332]
[1763339102415,0.0196812,94450.0,94438.0,0.03482603]
[1763339102613,0.00025048,94462.0,94449.0,0.10587332]
[1763339102808,0.01968691,94461.0,94449.0,0.10587332]